Workbook

Sheet Originál
C1: Vyučtovanie výčapu 2017
G2: Meno:
G3: Dátum: | J3: /2017
C13: Strana 1:
B14: P.Č. | C14: Názov tovaru | D14: Poč. stav | E14: Denný príjem | F14: Spolu | G14: Zostatok v sklade | I14: Denný výdaj | L14: J.M.
B16: 1. | C16: aaa | F16: =D16+E16 -> 0 | I16: =D16+E16-G16 -> 0 | K16: =I16*J16 -> 0 | L16: l.
B17: 2. | C17: aaa | F17: =D17+E17 -> 0 | I17: =D17+E17-G17 -> 0 | K17: =I17*J17 -> 0 | L17: l.
B18: 3. | C18: aaa | F18: 0 | I18: 0 | K18: 0
B19: 4. | C19: aaa | F19: 0 | I19: 0 | K19: 0
B20: 5. | C20: aaa | F20: 0 | I20: 0 | K20: 0 | L20: ks.
B21: 6. | F21: 0 | I21: 0 | K21: 0 | L21: ks.
B22: 7. | F22: 0 | I22: 0 | K22: 0 | L22: ks.
B23: 8. | F23: 0 | I23: 0 | K23: 0 | L23: ks.
B24: 9. | F24: 0 | I24: 0 | K24: 0 | L24: ks.
B25: 10. | F25: 0 | I25: 0 | K25: 0 | L25: ks.
B26: 11. | F26: 0 | I26: 0 | K26: 0 | L26: ks.
B27: 12. | F27: 0 | I27: 0 | K27: 0
B28: 13. | F28: 0 | I28: 0 | K28: 0
B29: 14. | F29: 0 | I29: 0 | K29: 0
B30: 15. | F30: 0 | I30: 0 | K30: 0 | L30: l.
B31: 16. | F31: 0 | I31: 0 | K31: 0 | L31: l.
B32: 17. | F32: 0 | I32: 0 | K32: 0
B33: 18. | F33: 0 | I33: 0 | K33: 0 | L33: l.
B34: 19. | F34: 0 | I34: 0 | K34: 0 | L34: l.
B35: 20. | F35: 0 | I35: 0 | K35: 0 | L35: l.
B36: 21. | F36: 0 | I36: 0 | K36: 0 | L36: l.
B37: 22. | F37: 0 | I37: 0 | K37: 0 | L37: l.
B38: 23. | F38: 0 | I38: 0 | K38: 0 | L38: l.
B39: 24. | F39: 0 | I39: 0 | K39: 0 | L39: l.
B40: 25. | F40: 0 | I40: 0 | K40: 0 | L40: l.
B41: 26. | F41: 0 | I41: 0 | K41: 0 | L41: l.
B42: 27. | F42: 0 | I42: 0 | K42: 0 | L42: l.
B43: 28. | F43: 0 | I43: 0 | K43: 0 | L43: l.
B44: 29. | F44: 0 | I44: 0 | K44: 0 | L44: l.
B45: 30. | F45: 0 | I45: 0 | K45: 0 | L45: l.
B46: 31. | F46: 0 | I46: 0 | K46: 0 | L46: l.
B47: 32. | F47: 0 | I47: 0 | K47: 0 | L47: l.
B48: 33. | F48: 0 | I48: 0 | K48: 0
B49: 34. | F49: 0 | I49: 0 | K49: 0
B50: 35. | F50: 0 | I50: 0 | K50: 0
B51: 36. | F51: 0 | I51: 0 | K51: 0
D53: =SUM(D16:D51) -> 0 | G53: =SUM(G16:G51) -> 0 | J53: Celkom: | K53: =SUM(K16:K51) -> 0
C58: Strana 2:
B59: P.Č. | C59: Názov tovaru | D59: Poč. stav | E59: Denný príjem | F59: Spolu | G59: Zostatok v sklade | I59: Denný výdaj
B61: 37. | C61: aaa | F61: =D61+E61 -> 0 | I61: =D61+E61-G61 -> 0 | K61: =I61*J61 -> 0 | L61: ks.
B62: 38. | C62: aaa | F62: =D62+E62 -> 0 | I62: =D62+E62-G62 -> 0 | K62: =I62*J62 -> 0 | L62: ks.
B63: 39. | C63: aaa | F63: 0 | I63: 0 | K63: 0 | L63: ks.
B64: 40. | C64: aaa | F64: 0 | I64: 0 | K64: 0
B65: 41. | C65: aaa | F65: 0 | I65: 0 | K65: 0 | L65: ks.
B66: 42. | F66: 0 | I66: 0 | K66: 0 | L66: ks.
B67: 43. | F67: 0 | I67: 0 | K67: 0 | L67: ks.
B68: 44. | D68: 0 | F68: 0 | G68: 0 | I68: 0 | K68: 0 | L68: l.
B69: 45. | F69: 0 | I69: 0 | K69: 0 | L69: ks.
B70: 46. | F70: 0 | I70: =D70+E70-G70 -> 0 | K70: 0 | L70: ks.
B71: 47. | F71: 0 | I71: 0 | K71: 0 | L71: l.
B72: 48. | F72: 0 | I72: 0 | K72: 0 | L72: ks.
B73: 49. | F73: 0 | I73: 0 | K73: 0
B74: 50. | F74: 0 | I74: 0 | K74: 0
B75: 51. | F75: 0 | I75: 0 | K75: 0
B76: 52. | F76: 0 | I76: 0 | K76: 0
B77: 53. | F77: 0 | I77: =(D77+E77-G77)/7 -> 0 | K77: 0 | L77: gr.
B78: 54. | F78: 0 | I78: 0 | K78: 0 | L78: ks.
B79: 55. | F79: 0 | I79: 0 | K79: =I79*J79 -> 0 | L79: ks.
B80: 56. | F80: 0 | I80: 0 | K80: =I80*J80 -> 0 | L80: ks.
B81: 57. | F81: 0 | I81: 0 | K81: =I81*J81 -> 0 | L81: ks.
B82: 58. | F82: 0 | I82: 0 | K82: =I82*J82 -> 0
B83: 59. | F83: 0 | I83: 0 | K83: 0
B84: 60. | F84: 0 | I84: 0 | K84: 0 | L84: ks.
B85: 61. | F85: 0 | I85: 0 | K85: 0 | L85: ks.
B86: 62. | F86: 0 | I86: 0 | K86: 0 | L86: ks.
B87: 63. | F87: 0 | I87: 0 | K87: 0 | L87: ks.
B88: 64. | F88: 0 | I88: 0 | K88: 0 | L88: ks.
B89: 65. | F89: 0 | I89: 0 | K89: 0 | L89: ks.
B90: 66. | F90: 0 | I90: 0 | K90: 0 | L90: ks.
B91: 67. | F91: 0 | I91: 0 | K91: 0
B92: 68. | F92: 0 | I92: 0 | K92: 0
B93: 69. | F93: 0 | I93: 0 | K93: 0
B94: 70. | F94: 0 | I94: 0 | K94: 0 | L94: ks.
B95: 71. | F95: 0 | I95: 0 | K95: 0 | L95: ks.
B96: 72. | F96: 0 | I96: 0 | K96: 0 | L96: ks.
B97: 73. | F97: 0 | I97: 0 | K97: 0
B98: 74. | F98: 0 | I98: 0 | K98: 0
B99: 75. | F99: 0 | I99: 0 | K99: 0
B100: 76. | F100: 0 | I100: 0 | K100: 0
B101: 77. | F101: 0 | I101: 0 | K101: 0
D103: =SUM(D61:D101) -> 0 | G103: =SUM(G61:G101) -> 0 | J103: Celkom : | K103: =SUM(K61:K101) -> 0
C107: Strana 3:
B108: P.Č. | C108: Názov tovaru | D108: Poč. stav | E108: Denný príjem | F108: Spolu | G108: Zostatok v sklade | I108: Denný výdaj
B110: 78. | C110: aaa | F110: =D110+E110 -> 0 | I110: =D110+E110-G110 -> 0 | K110: =I110*J110 -> 0 | L110: ks.
B111: 79. | C111: aaa | F111: =D111+E111 -> 0 | I111: =D111+E111-G111 -> 0 | K111: =I111*J111 -> 0 | L111: ks.
B112: 80. | C112: aaa | F112: 0 | I112: 0 | K112: 0 | L112: ks.
B113: 81. | C113: aaa | F113: 0 | I113: 0 | K113: 0
B114: 82. | C114: aaa | F114: 0 | I114: 0 | K114: 0 | L114: ks.
B115: 83. | F115: 0 | I115: 0 | K115: 0 | L115: ks.
B116: 84. | F116: 0 | I116: 0 | K116: 0 | L116: ks.
B117: 85. | F117: 0 | I117: 0 | K117: 0
B118: 86. | F118: 0 | I118: 0 | K118: 0 | L118: ks.
B119: 87. | F119: 0 | I119: 0 | K119: 0 | L119: ks.
B120: 88. | F120: 0 | I120: 0 | K120: 0 | L120: ks.
B121: 89. | F121: 0 | I121: 0 | K121: 0 | L121: ks.
B122: 90. | F122: 0 | I122: 0 | K122: 0 | L122: ks.
B123: 91. | F123: 0 | I123: 0 | K123: 0
B124: 92. | F124: 0 | I124: 0 | K124: 0 | L124: ks.
B125: 93. | F125: 0 | I125: 0 | K125: 0 | L125: ks.
B126: 94. | F126: 0 | I126: 0 | K126: 0 | L126: ks.
B127: 95. | F127: 0 | I127: 0 | K127: 0 | L127: ks.
B128: 96. | F128: 0 | I128: 0 | K128: 0 | L128: ks.
B129: 97. | F129: 0 | I129: 0 | K129: 0 | L129: ks.
B130: 98. | F130: 0 | I130: 0 | K130: 0
B131: 99. | F131: 0 | I131: 0 | K131: 0
B132: 100. | F132: 0 | I132: 0 | K132: 0
B133: 101. | F133: 0 | I133: 0 | K133: 0
B134: 102. | F134: 0 | I134: 0 | K134: 0
B135: 103. | F135: 0 | I135: 0 | K135: 0
D137: =SUM(D110:D135) -> 0 | G137: =SUM(G110:G135) -> 0 | J137: Celkom: | K137: =SUM(K110:K135) -> 0

Sheet Sumár
C1: Vyučtovanie výčapu 2017
G2: Meno:
G3: Dátum: | J3: /2017
C13: Strana 1:
B14: P.Č. | C14: Názov tovaru | D14: Poč. stav | E14: Denný príjem | F14: Spolu | G14: Zostatok v sklade | I14: Denný výdaj | L14: J.M.
B16: 1. | F16: =D16+E16 -> 0 | G16: 1828.4 | H16: 0 | I16: =D16+E16-G16 -> -1828.4 | J16: 1.8 | K16: =I16*J16 -> -3291.12 | L16: l.
B17: 2. | F17: =D17+E17 -> 0 | G17: 1148.2 | H17: 0 | I17: =D17+E17-G17 -> -1148.2 | J17: 2 | K17: =I17*J17 -> -2296.4 | L17: l.
B18: 3. | F18: 0 | G18: 0 | H18: 0 | I18: 0 | K18: 0
B19: 4. | F19: 0 | G19: 0 | H19: 0 | I19: 0 | K19: 0
B20: 5. | F20: 0 | G20: 89 | H20: 0 | I20: -89 | J20: 0.8 | K20: -71.2 | L20: ks.
B21: 6. | F21: 0 | G21: 214 | H21: 0 | I21: -214 | J21: 0.9 | K21: -192.6 | L21: ks.
B22: 7. | F22: 0 | G22: 264 | H22: 0 | I22: -264 | J22: 1 | K22: -264 | L22: ks.
B23: 8. | F23: 0 | G23: 260 | H23: 0 | I23: -260 | J23: 0.9 | K23: -234 | L23: ks.
B24: 9. | F24: 0 | G24: 273 | H24: 0 | I24: -273 | J24: 1.2 | K24: -327.6 | L24: ks.
B25: 10. | F25: 0 | G25: 203 | H25: 0 | I25: -203 | J25: 1 | K25: -203 | L25: ks.
B26: 11. | F26: 0 | G26: 153 | H26: 0 | I26: -153 | J26: 0.9 | K26: -137.7 | L26: ks.
B27: 12. | F27: 0 | G27: 0 | H27: 0 | I27: 0 | K27: 0
B28: 13. | F28: 0 | G28: 0 | H28: 0 | I28: 0 | K28: 0
B29: 14. | F29: 0 | G29: 0 | H29: 0 | I29: 0 | K29: 0
B30: 15. | F30: 0 | G30: 50.8 | H30: 0 | I30: -50.8 | J30: 3 | K30: -152.4 | L30: l.
B31: 16. | F31: 0 | G31: 68.5 | H31: 0 | I31: -68.5 | J31: 3 | K31: -205.5 | L31: l.
B32: 17. | F32: 0 | G32: 0 | H32: 0 | I32: 0 | K32: 0
B33: 18. | F33: 0 | G33: 288.6 | H33: 0 | I33: -288.6 | J33: 12 | K33: -3463.2 | L33: l.
B34: 19. | F34: 0 | G34: 373.75 | H34: 0 | I34: -373.75 | J34: 12 | K34: -4485 | L34: l.
B35: 20. | F35: 0 | G35: 28.3 | H35: 0 | I35: -28.3 | J35: 14 | K35: -396.2 | L35: l.
B36: 21. | F36: 0 | G36: 141.2 | H36: 0 | I36: -141.2 | J36: 12 | K36: -1694.4 | L36: l.
B37: 22. | F37: 0 | G37: 56.3 | H37: 0 | I37: -56.3 | J37: 14 | K37: -788.2 | L37: l.
B38: 23. | F38: 0 | G38: 25.6 | H38: 0 | I38: -25.6 | J38: 14 | K38: -358.4 | L38: l.
B39: 24. | F39: 0 | G39: 176.25 | H39: 0 | I39: -176.25 | J39: 12 | K39: -2115 | L39: l.
B40: 25. | F40: 0 | G40: 107.5 | H40: 0 | I40: -107.5 | J40: 12 | K40: -1290 | L40: l.
B41: 26. | F41: 0 | G41: 33.65 | H41: 0 | I41: -33.65 | J41: 14 | K41: -471.1 | L41: l.
B42: 27. | F42: 0 | G42: 20.9 | H42: 0 | I42: -20.9 | J42: 20 | K42: -418 | L42: l.
B43: 28. | F43: 0 | G43: 21.9 | H43: 0 | I43: -21.9 | J43: 20 | K43: -438 | L43: l.
B44: 29. | F44: 0 | G44: 32.55 | H44: 0 | I44: -32.55 | J44: 14 | K44: -455.7 | L44: l.
B45: 30. | F45: 0 | G45: 23.85 | H45: 0 | I45: -23.85 | J45: 24 | K45: -572.4 | L45: l.
B46: 31. | F46: 0 | G46: 10.9 | H46: 0 | I46: -10.9 | J46: 20 | K46: -218 | L46: l.
B47: 32. | F47: 0 | G47: 28.05 | H47: 0 | I47: -28.05 | J47: 20 | K47: -561 | L47: l.
B48: 33. | F48: 0 | G48: 0 | H48: 0 | I48: 0 | K48: 0
B49: 34. | F49: 0 | G49: 0 | H49: 0 | I49: 0 | K49: 0
B50: 35. | F50: 0 | G50: 0 | H50: 0 | I50: 0 | K50: 0
B51: 36. | F51: 0 | G51: 0 | H51: 0 | I51: 0 | K51: 0
D53: =SUM(D16:D51) -> 0 | G53: =SUM(G16:G51) -> 5921.2 | J53: Celkom: | K53: =SUM(K16:K51) -> -25100.12
C58: Strana 2:
B59: P.Č. | C59: Názov tovaru | D59: Poč. stav | E59: Denný príjem | F59: Spolu | G59: Zostatok v sklade | I59: Denný predaj | J59: Cena € | K59: Suma celkom €
B61: 37. | F61: =D61+E61 -> 0 | G61: 184 | H61: 0 | I61: =D61+E61-G61 -> -184 | J61: 1 | K61: =I61*J61 -> -184 | L61: ks.
B62: 38. | F62: =D62+E62 -> 0 | G62: 49.4 | H62: 0 | I62: =D62+E62-G62 -> -49.4 | J62: 2 | K62: =I62*J62 -> -98.8 | L62: ks.
B63: 39. | F63: 0 | G63: 192 | H63: 0 | I63: -192 | J63: 0.8 | K63: -153.6 | L63: ks.
B64: 40. | F64: 0 | G64: 0 | H64: 0 | I64: 0 | K64: 0
B65: 41. | F65: 0 | G65: 161 | H65: 0 | I65: -161 | J65: 0.5 | K65: -80.5 | L65: ks.
B66: 42. | F66: 0 | G66: 73 | H66: 0 | I66: -73 | J66: 1 | K66: -73 | L66: ks.
B67: 43. | F67: 0 | G67: 720 | H67: 0 | I67: -720 | J67: 0.5 | K67: -360 | L67: ks.
B68: 44. | F68: 0 | G68: 160.7 | H68: 0 | I68: -160.7 | J68: 1 | K68: -160.7 | L68: l.
B69: 45. | F69: 0 | G69: 507 | H69: 0 | I69: -507 | J69: 1 | K69: -507 | L69: ks.
B70: 46. | F70: 0 | G70: 99.8 | H70: 0 | I70: =D70+E70-G70 -> -99.8 | J70: 2 | K70: -199.6 | L70: ks.
B71: 47. | F71: 0 | G71: 53 | H71: 0 | I71: -53 | J71: 1 | K71: -53 | L71: l.
B72: 48. | F72: 0 | G72: 99 | H72: 0 | I72: -99 | J72: 0.8 | K72: -79.2 | L72: ks.
B73: 49. | F73: 0 | G73: 0 | H73: 0 | I73: 0 | K73: 0
B74: 50. | F74: 0 | G74: 0 | H74: 0 | I74: 0 | K74: 0
B75: 51. | F75: 0 | G75: 0 | H75: 0 | I75: 0 | K75: 0
B76: 52. | F76: 0 | G76: 0 | H76: 0 | I76: 0 | K76: 0
B77: 53. | F77: 0 | G77: 25050 | H77: 0 | I77: =(D77+E77-G77)/7 -> -3578.571429 | J77: 0.5 | K77: -1789.285714 | L77: gr.
B78: 54. | F78: 0 | G78: 522 | H78: 0 | I78: -522 | J78: 0.5 | K78: -261 | L78: ks.
B79: 55. | F79: 0 | G79: 3079 | H79: 0 | I79: -3079 | J79: 0.5 | K79: -1539.5 | L79: ks.
B80: 56. | F80: 0 | G80: 1307 | H80: 0 | I80: -1307 | J80: 0.1 | K80: -130.7 | L80: ks.
B81: 57. | F81: 0 | G81: 6944 | H81: 0 | I81: -6944 | J81: 0.05 | K81: -347.2 | L81: ks.
B82: 58. | F82: 0 | G82: 0 | H82: 0 | I82: 0 | K82: 0
B83: 59. | F83: 0 | G83: 0 | H83: 0 | I83: 0 | K83: 0
B84: 60. | F84: 0 | G84: 256 | H84: 0 | I84: -256 | J84: 3.1 | K84: -793.6 | L84: ks.
B85: 61. | F85: 0 | G85: 182 | H85: 0 | I85: -182 | J85: 3.1 | K85: -564.2 | L85: ks.
B86: 62. | F86: 0 | G86: 62 | H86: 0 | I86: -62 | J86: 3.3 | K86: -204.6 | L86: ks.
B87: 63. | F87: 0 | G87: 138 | H87: 0 | I87: -138 | J87: 3 | K87: -414 | L87: ks.
B88: 64. | F88: 0 | G88: 191 | H88: 0 | I88: -191 | J88: 3.1 | K88: -592.1 | L88: ks.
B89: 65. | F89: 0 | G89: 57 | H89: 0 | I89: -57 | J89: 3.1 | K89: -176.7 | L89: ks.
B90: 66. | F90: 0 | G90: 148 | H90: 0 | I90: -148 | J90: 3 | K90: -444 | L90: ks.
B91: 67. | F91: 0 | G91: 0 | H91: 0 | I91: 0 | K91: 0
B92: 68. | F92: 0 | G92: 0 | H92: 0 | I92: 0 | K92: 0
B93: 69. | F93: 0 | G93: 0 | H93: 0 | I93: 0 | K93: 0
B94: 70. | F94: 0 | G94: 176 | H94: 0 | I94: -176 | J94: 0.2 | K94: -35.2 | L94: ks.
B95: 71. | F95: 0 | G95: 491 | H95: 0 | I95: -491 | J95: 0.5 | K95: -245.5 | L95: ks.
B96: 72. | F96: 0 | G96: 297 | H96: 0 | I96: -297 | J96: 0.1 | K96: -29.7 | L96: ks.
B97: 73. | F97: 0 | G97: 0 | H97: 0 | I97: 0 | K97: 0
B98: 74. | F98: 0 | G98: 0 | H98: 0 | I98: 0 | K98: 0
B99: 75. | F99: 0 | G99: 0 | H99: 0 | I99: 0 | K99: 0
B100: 76. | F100: 0 | G100: 0 | H100: 0 | I100: 0 | K100: 0
B101: 77. | F101: 0 | G101: 0 | H101: 0 | I101: 0 | K101: 0
D103: =SUM(D61:D101) -> 0 | G103: =SUM(G61:G101) -> 41198.9 | J103: Celkom : | K103: =SUM(K61:K101) -> -9516.685714
C107: Strana 3:
B108: P.Č. | C108: Názov tovaru | D108: Poč. stav | E108: Denný príjem | F108: Spolu | G108: Zostatok v sklade | I108: Denný predaj | J108: Cena € | K108: Suma celkom €
B110: 78. | F110: =D110+E110 -> 0 | G110: 21 | H110: 0 | I110: =D110+E110-G110 -> -21 | J110: 1.2 | K110: =I110*J110 -> -25.2 | L110: ks.
B111: 79. | F111: =D111+E111 -> 0 | G111: 632 | H111: 0 | I111: =D111+E111-G111 -> -632 | J111: 0.6 | K111: =I111*J111 -> -379.2 | L111: ks.
B112: 80. | F112: 0 | G112: 291 | H112: 0 | I112: -291 | J112: 0.6 | K112: -174.6 | L112: ks.
B113: 81. | F113: 0 | G113: 0 | H113: 0 | I113: 0 | K113: 0
B114: 82. | F114: 0 | G114: 99 | H114: 0 | I114: -99 | J114: 0.6 | K114: -59.4 | L114: ks.
B115: 83. | F115: 0 | G115: 308 | H115: 0 | I115: -308 | J115: 0.6 | K115: -184.8 | L115: ks.
B116: 84. | F116: 0 | G116: 357 | H116: 0 | I116: -357 | J116: 0.6 | K116: -214.2 | L116: ks.
B117: 85. | F117: 0 | G117: 0 | H117: 0 | I117: 0 | K117: 0
B118: 86. | F118: 0 | G118: 111 | H118: 0 | I118: -111 | J118: 0.6 | K118: -66.6 | L118: ks.
B119: 87. | F119: 0 | G119: 869 | H119: 0 | I119: -869 | J119: 0.4 | K119: -347.6 | L119: ks.
B120: 88. | F120: 0 | G120: 217 | H120: 0 | I120: -217 | J120: 0.8 | K120: -173.6 | L120: ks.
B121: 89. | F121: 0 | G121: 20 | H121: 0 | I121: -20 | J121: 2.6 | K121: -52 | L121: ks.
B122: 90. | F122: 0 | G122: 13 | H122: 0 | I122: -13 | J122: 1.5 | K122: -19.5 | L122: ks.
B123: 91. | F123: 0 | G123: 0 | H123: 0 | I123: 0 | K123: 0
B124: 92. | F124: 0 | G124: 125 | H124: 0 | I124: -125 | J124: 0.5 | K124: -62.5 | L124: ks.
B125: 93. | F125: 0 | G125: 45 | H125: 0 | I125: -45 | J125: 0.8 | K125: -36 | L125: ks.
B126: 94. | F126: 0 | G126: 150 | H126: 0 | I126: -150 | J126: 0.6 | K126: -90 | L126: ks.
B127: 95. | F127: 0 | G127: 780 | H127: 0 | I127: -780 | J127: 0.1 | K127: -78 | L127: ks.
B128: 96. | F128: 0 | G128: 213 | H128: 0 | I128: -213 | J128: 0.6 | K128: -127.8 | L128: ks.
B129: 97. | F129: 0 | G129: 85 | H129: 0 | I129: -85 | J129: 0.9 | K129: -76.5 | L129: ks.
B130: 98. | F130: 0 | G130: 0 | H130: 0 | I130: 0 | K130: 0
B131: 99. | F131: 0 | G131: 0 | H131: 0 | I131: 0 | K131: 0
B132: 100. | F132: 0 | G132: 0 | H132: 0 | I132: 0 | K132: 0
B133: 101. | F133: 0 | G133: 0 | H133: 0 | I133: 0 | K133: 0
B134: 102. | F134: 0 | G134: 0 | H134: 0 | I134: 0 | K134: 0
B135: 103. | F135: 0 | G135: 0 | H135: 0 | I135: 0 | K135: 0
D137: =SUM(D110:D135) -> 0 | G137: =SUM(G110:G135) -> 4336 | J137: Celkom: | K137: =SUM(K110:K135) -> -2167.5

Sheet 1
C1: Vyučtovanie výčapu 2017
G2: Meno:
G3: Dátum: | J3: /2017
C13: Strana 1:
B14: P.Č. | C14: Názov tovaru | D14: Poč. stav | E14: Denný príjem | F14: Spolu | G14: Zostatok v sklade | I14: Denný výdaj | L14: J.M.
B16: 1. | C16: aaa | D16: 55 | F16: =D16+E16 -> 55 | G16: 33 | I16: =D16+E16-G16 -> 22 | K16: =I16*J16 -> 0 | L16: l.
B17: 2. | C17: aaa | D17: 55 | F17: =D17+E17 -> 55 | I17: =D17+E17-G17 -> 55 | K17: =I17*J17 -> 0 | L17: l.
B18: 3. | C18: aaa | D18: 55 | F18: 55 | G18: 33 | I18: 22 | K18: 0
B19: 4. | C19: aaa | D19: 55 | F19: 55 | I19: 55 | K19: 0
B20: 5. | C20: aaa | D20: 55 | F20: 55 | G20: 33 | I20: 22 | K20: 0 | L20: ks.
B21: 6. | F21: 0 | I21: 0 | K21: 0 | L21: ks.
B22: 7. | F22: 0 | I22: 0 | K22: 0 | L22: ks.
B23: 8. | F23: 0 | I23: 0 | K23: 0 | L23: ks.
B24: 9. | F24: 0 | I24: 0 | K24: 0 | L24: ks.
B25: 10. | F25: 0 | I25: 0 | K25: 0 | L25: ks.
B26: 11. | F26: 0 | I26: 0 | K26: 0 | L26: ks.
B27: 12. | F27: 0 | I27: 0 | K27: 0
B28: 13. | F28: 0 | I28: 0 | K28: 0
B29: 14. | F29: 0 | I29: 0 | K29: 0
B30: 15. | F30: 0 | I30: 0 | K30: 0 | L30: l.
B31: 16. | F31: 0 | I31: 0 | K31: 0 | L31: l.
B32: 17. | F32: 0 | I32: 0 | K32: 0
B33: 18. | F33: 0 | I33: 0 | K33: 0 | L33: l.
B34: 19. | F34: 0 | I34: 0 | K34: 0 | L34: l.
B35: 20. | F35: 0 | I35: 0 | K35: 0 | L35: l.
B36: 21. | F36: 0 | I36: 0 | K36: 0 | L36: l.
B37: 22. | F37: 0 | I37: 0 | K37: 0 | L37: l.
B38: 23. | F38: 0 | I38: 0 | K38: 0 | L38: l.
B39: 24. | F39: 0 | I39: 0 | K39: 0 | L39: l.
B40: 25. | F40: 0 | I40: 0 | K40: 0 | L40: l.
B41: 26. | F41: 0 | I41: 0 | K41: 0 | L41: l.
B42: 27. | F42: 0 | I42: 0 | K42: 0 | L42: l.
B43: 28. | F43: 0 | I43: 0 | K43: 0 | L43: l.
B44: 29. | F44: 0 | I44: 0 | K44: 0 | L44: l.
B45: 30. | F45: 0 | I45: 0 | K45: 0 | L45: l.
B46: 31. | F46: 0 | I46: 0 | K46: 0 | L46: l.
B47: 32. | F47: 0 | I47: 0 | K47: 0 | L47: l.
B48: 33. | F48: 0 | I48: 0 | K48: 0
B49: 34. | F49: 0 | I49: 0 | K49: 0
B50: 35. | F50: 0 | I50: 0 | K50: 0
B51: 36. | F51: 0 | I51: 0 | K51: 0
D53: =SUM(D16:D51) -> 275 | G53: =SUM(G16:G51) -> 99 | J53: Celkom: | K53: =SUM(K16:K51) -> 0
C58: Strana 2:
B59: P.Č. | C59: Názov tovaru | D59: Poč. stav | E59: Denný príjem | F59: Spolu | G59: Zostatok v sklade | I59: Denný výdaj
B61: 37. | C61: aaa | D61: 11 | F61: =D61+E61 -> 11 | I61: =D61+E61-G61 -> 11 | K61: =I61*J61 -> 0 | L61: ks.
B62: 38. | C62: aaa | D62: 11 | F62: =D62+E62 -> 11 | G62: 2 | I62: =D62+E62-G62 -> 9 | K62: =I62*J62 -> 0 | L62: ks.
B63: 39. | C63: aaa | D63: 11 | F63: 11 | G63: 2 | I63: 9 | K63: 0 | L63: ks.
B64: 40. | C64: aaa | D64: 11 | F64: 11 | G64: 2 | I64: 9 | K64: 0
B65: 41. | C65: aaa | D65: 11 | F65: 11 | G65: 2 | I65: 9 | K65: 0 | L65: ks.
B66: 42. | F66: 0 | I66: 0 | K66: 0 | L66: ks.
B67: 43. | F67: 0 | I67: 0 | K67: 0 | L67: ks.
B68: 44. | D68: 0 | F68: 0 | G68: 0 | I68: 0 | K68: 0 | L68: l.
B69: 45. | F69: 0 | I69: 0 | K69: 0 | L69: ks.
B70: 46. | F70: 0 | I70: =D70+E70-G70 -> 0 | K70: 0 | L70: ks.
B71: 47. | F71: 0 | I71: 0 | K71: 0 | L71: l.
B72: 48. | F72: 0 | I72: 0 | K72: 0 | L72: ks.
B73: 49. | F73: 0 | I73: 0 | K73: 0
B74: 50. | F74: 0 | I74: 0 | K74: 0
B75: 51. | F75: 0 | I75: 0 | K75: 0
B76: 52. | F76: 0 | I76: 0 | K76: 0
B77: 53. | F77: 0 | I77: =(D77+E77-G77)/7 -> 0 | K77: 0 | L77: gr.
B78: 54. | F78: 0 | I78: 0 | K78: 0 | L78: ks.
B79: 55. | F79: 0 | I79: 0 | K79: =I79*J79 -> 0 | L79: ks.
B80: 56. | F80: 0 | I80: 0 | K80: =I80*J80 -> 0 | L80: ks.
B81: 57. | F81: 0 | I81: 0 | K81: =I81*J81 -> 0 | L81: ks.
B82: 58. | F82: 0 | I82: 0 | K82: =I82*J82 -> 0
B83: 59. | F83: 0 | I83: 0 | K83: 0
B84: 60. | F84: 0 | I84: 0 | K84: 0 | L84: ks.
B85: 61. | F85: 0 | I85: 0 | K85: 0 | L85: ks.
B86: 62. | F86: 0 | I86: 0 | K86: 0 | L86: ks.
B87: 63. | F87: 0 | I87: 0 | K87: 0 | L87: ks.
B88: 64. | F88: 0 | I88: 0 | K88: 0 | L88: ks.
B89: 65. | F89: 0 | I89: 0 | K89: 0 | L89: ks.
B90: 66. | F90: 0 | I90: 0 | K90: 0 | L90: ks.
B91: 67. | F91: 0 | I91: 0 | K91: 0
B92: 68. | F92: 0 | I92: 0 | K92: 0
B93: 69. | F93: 0 | I93: 0 | K93: 0
B94: 70. | F94: 0 | I94: 0 | K94: 0 | L94: ks.
B95: 71. | F95: 0 | I95: 0 | K95: 0 | L95: ks.
B96: 72. | F96: 0 | I96: 0 | K96: 0 | L96: ks.
B97: 73. | F97: 0 | I97: 0 | K97: 0
B98: 74. | F98: 0 | I98: 0 | K98: 0
B99: 75. | F99: 0 | I99: 0 | K99: 0
B100: 76. | F100: 0 | I100: 0 | K100: 0
B101: 77. | F101: 0 | I101: 0 | K101: 0
D103: =SUM(D61:D101) -> 55 | G103: =SUM(G61:G101) -> 8 | J103: Celkom : | K103: =SUM(K61:K101) -> 0
C107: Strana 3:
B108: P.Č. | C108: Názov tovaru | D108: Poč. stav | E108: Denný príjem | F108: Spolu | G108: Zostatok v sklade | I108: Denný výdaj
B110: 78. | C110: aaa | F110: =D110+E110 -> 0 | I110: =D110+E110-G110 -> 0 | K110: =I110*J110 -> 0 | L110: ks.
B111: 79. | C111: aaa | F111: =D111+E111 -> 0 | I111: =D111+E111-G111 -> 0 | K111: =I111*J111 -> 0 | L111: ks.
B112: 80. | C112: aaa | F112: 0 | I112: 0 | K112: 0 | L112: ks.
B113: 81. | C113: aaa | F113: 0 | I113: 0 | K113: 0
B114: 82. | C114: aaa | F114: 0 | I114: 0 | K114: 0 | L114: ks.
B115: 83. | F115: 0 | I115: 0 | K115: 0 | L115: ks.
B116: 84. | F116: 0 | I116: 0 | K116: 0 | L116: ks.
B117: 85. | F117: 0 | I117: 0 | K117: 0
B118: 86. | F118: 0 | I118: 0 | K118: 0 | L118: ks.
B119: 87. | F119: 0 | I119: 0 | K119: 0 | L119: ks.
B120: 88. | F120: 0 | I120: 0 | K120: 0 | L120: ks.
B121: 89. | F121: 0 | I121: 0 | K121: 0 | L121: ks.
B122: 90. | F122: 0 | I122: 0 | K122: 0 | L122: ks.
B123: 91. | F123: 0 | I123: 0 | K123: 0
B124: 92. | F124: 0 | I124: 0 | K124: 0 | L124: ks.
B125: 93. | F125: 0 | I125: 0 | K125: 0 | L125: ks.
B126: 94. | F126: 0 | I126: 0 | K126: 0 | L126: ks.
B127: 95. | F127: 0 | I127: 0 | K127: 0 | L127: ks.
B128: 96. | F128: 0 | I128: 0 | K128: 0 | L128: ks.
B129: 97. | F129: 0 | I129: 0 | K129: 0 | L129: ks.
B130: 98. | F130: 0 | I130: 0 | K130: 0
B131: 99. | F131: 0 | I131: 0 | K131: 0
B132: 100. | F132: 0 | I132: 0 | K132: 0
B133: 101. | F133: 0 | I133: 0 | K133: 0
B134: 102. | F134: 0 | I134: 0 | K134: 0
B135: 103. | F135: 0 | I135: 0 | K135: 0
D137: =SUM(D110:D135) -> 0 | G137: =SUM(G110:G135) -> 0 | J137: Celkom: | K137: =SUM(K110:K135) -> 0
